fUST/lending_fUST_20241112
["ID","MTS","AMOUNT","RATE_DAILY","PERIOD"]
[342078841,1731412249490,-18741.5,0.00021917,2]
[342078842,1731412249499,-500.0,0.00021917,2]
[342078843,1731412249508,-500.0,0.00021917,2]
[342078844,1731412249518,-2056.59,0.00021917,2]
[342078845,1731412249527,-719.55,0.00021917,2]
[342078846,1731412249536,-500.0,0.00021917,2]
[342078847,1731412249545,-500.0,0.00021917,2]
[342078848,1731412249555,-522.59,0.00021917,2]
[342078849,1731412249564,-500.0,0.00021917,2]
[342078850,1731412249574,-500.0,0.00021917,2]
[342078851,1731412249584,-500.0,0.00021917,2]
[342078852,1731412249593,-166.666666,0.00021918,2]
[342078853,1731412249602,-336.45763039,0.00021954,2]
[342078854,1731412249611,-541.16999734,0.00021973,2]
[342078855,1731412249622,-199.62686539,0.00021973,2]
[342078856,1731412249631,-502.64882529,0.00021973,2]
[342078857,1731412249640,-500.0,0.00021973,2]
[342078858,1731412249649,-500.0,0.00021973,2]
[342078859,1731412249659,-500.0,0.00021973,2]
[342078860,1731412249668,-500.0,0.00021973,2]
[342078861,1731412249678,-500.0,0.00021973,2]
[342078862,1731412249687,-564.50305121,0.00021973,2]
[342078863,1731412249696,-500.0,0.00021973,2]
[342078864,1731412249706,-160.58836082,0.00021973,2]
[342078865,1731412249715,-500.0,0.00021973,2]
[342078866,1731412249724,-500.0,0.00021973,2]
[342078867,1731412249733,-500.0,0.00021973,2]
[342078868,1731412249742,-500.0,0.00021973,2]
[342078869,1731412249752,-500.0,0.00021973,2]
[342078870,1731412249761,-501.02361166,0.00021973,2]
[342078871,1731412249771,-500.0,0.00021973,2]
[342078872,1731412249780,-349.55908742,0.00021973,2]
[342078873,1731412249859,-7063.83954795,0.00022,2]
[342078874,1731412249869,-359.0,0.00022,2]
[342078875,1731412249880,-159.0,0.00022,2]
[342078876,1731412249889,-167.0,0.00022,2]
[342078877,1731412249899,-336.45763039,0.00022091,2]
[342078878,1731412249908,-500.0,0.00022173,2]
[342078879,1731412249917,-412.2622093,0.00022173,2]
[342078880,1731412249926,-500.0,0.00022173,2]
[342078881,1731412249935,-500.0,0.00022173,2]
[342078882,1731412249945,-500.0,0.00022173,2]
[342078883,1731412249954,-500.0,0.00022173,2]
[342078884,1731412249964,-500.0,0.00022173,2]
[342078885,1731412249973,-500.0,0.00022173,2]
[342078886,1731412249982,-500.0,0.00022173,2]
[342078887,1731412249991,-500.0,0.00022173,2]
[342078888,1731412250000,-500.0,0.00022173,2]
[342078889,1731412250010,-500.0,0.00022173,2]
[342078890,1731412250019,-500.0,0.00022173,2]
[342078891,1731412250029,-500.0,0.00022173,2]
[342078892,1731412250038,-500.0,0.00022173,2]
[342078893,1731412250047,-151.0,0.00022191,7]
[342078894,1731412250057,-151.0,0.00022191,7]
[342078895,1731412250067,-151.0,0.00022191,7]
[342078896,1731412250076,-151.0,0.00022191,2]
[342078897,1731412250086,-158.209045,0.00022191,7]
[342078898,1731412250095,-538.93237744,0.00022191,2]
[342078899,1731412250105,-372.67554763,0.00022191,2]
[342078900,1731412250114,-151.0,0.00022191,7]
[342078901,1731412250125,-151.0,0.00022191,7]
[342078902,1731412250134,-151.0,0.00022191,3]
[342078903,1731412250143,-151.0,0.00022191,7]
[342078904,1731412250152,-151.0,0.00022191,7]
[342078905,1731412250162,-156.997698,0.00022191,7]
[342078906,1731412250175,-151.0,0.00022191,7]
[342078907,1731412250184,-274.309488,0.00022191,7]
[342078908,1731412250193,-500.0,0.00022191,2]
[342078909,1731412250206,-500.0,0.00022191,2]
[342078910,1731412250215,-236.276673,0.00022191,7]
[342078911,1731412250225,-151.0,0.00022191,7]
[342078912,1731412250234,-500.0,0.00022191,2]
[342078913,1731412250243,-500.0,0.00022191,2]
[342078914,1731412250254,-500.0,0.00022191,2]
[342078915,1731412250264,-523.30400976,0.00022191,2]
[342078916,1731412250274,-443.76744663,0.00022191,2]
[342078917,1731412250286,-500.0,0.00022191,2]
[342078918,1731412250295,-204.266052,0.00022191,7]
[342078919,1731412250305,-500.0,0.00022191,2]
[342078920,1731412250314,-500.0,0.00022191,2]
[342078921,1731412250323,-500.0,0.00022191,2]
[342078922,1731412250332,-500.0,0.00022191,2]
[342078923,1731412250341,-515.71016255,0.00022191,2]
[342078924,1731412250350,-315.98841706,0.00022191,2]
[342078925,1731412250359,-500.0,0.00022191,2]
[342078926,1731412250371,-500.0,0.00022191,2]
[342078927,1731412250382,-500.0,0.00022191,2]
[342078928,1731412250391,-500.0,0.00022191,2]
[342078929,1731412250401,-500.0,0.00022191,2]
[342078930,1731412250410,-500.0,0.00022191,2]
[342078931,1731412250419,-506.81905352,0.00022191,2]
[342078932,1731412250429,-500.0,0.00022191,2]
[342078933,1731412250438,-596.51173812,0.00022191,2]
[342078934,1731412250448,-500.0,0.00022191,2]
[342078935,1731412250457,-151.0,0.00022191,7]
[342078936,1731412250466,-151.0,0.00022191,7]
[342078937,1731412250475,-151.0,0.00022191,7]
[342078938,1731412250484,-500.0,0.00022191,2]
[342078939,1731412250493,-500.0,0.00022191,2]
[342078940,1731412250502,-500.0,0.00022191,2]
[342078941,1731412250511,-504.417405,0.00022191,2]
[342078942,1731412250521,-543.88530108,0.00022191,2]
[342078943,1731412250530,-151.0,0.00022191,7]
[342078944,1731412250539,-500.0,0.00022191,2]
[342078945,1731412250548,-151.0,0.00022191,7]
[342078946,1731412250557,-151.0,0.00022191,7]
[342078947,1731412250566,-500.0,0.00022191,2]
[342078948,1731412250575,-613.97278429,0.00022191,2]
[342078949,1731412250584,-566.07616342,0.00022191,2]
[342078950,1731412250593,-500.0,0.00022191,2]
[342078951,1731412250603,-500.0,0.00022191,2]
[342078952,1731412250612,-151.0,0.00022191,7]
[342078953,1731412250623,-151.0,0.00022191,7]
[342078954,1731412250632,-400.34835242,0.00022191,2]
[342078955,1731412250642,-500.0,0.00022191,2]
[342078956,1731412250651,-500.0,0.00022191,2]
[342078957,1731412250660,-184.37853292,0.00022191,2]
[342078958,1731412250669,-500.0,0.00022191,2]
[342078959,1731412250678,-500.0,0.00022191,2]
[342078960,1731412250687,-151.0,0.00022191,7]
[342078961,1731412250696,-151.0,0.00022191,7]
[342078962,1731412250705,-151.0,0.00022191,7]
[342078963,1731412250715,-151.0,0.00022191,7]
[342078964,1731412250724,-151.0,0.00022191,7]
[342078965,1731412250733,-151.0,0.00022191,7]
[342078966,1731412250742,-500.0,0.00022191,2]
[342078967,1731412250751,-500.0,0.00022191,2]
[342078968,1731412250760,-500.0,0.00022191,2]
[342078969,1731412250769,-500.0,0.00022191,2]
[342078970,1731412250779,-151.0,0.00022191,7]
[342078971,1731412250788,-151.0,0.00022191,7]
[342078972,1731412250797,-152.238519,0.00022191,7]
[342078973,1731412250807,-151.0,0.00022191,7]
[342078974,1731412250817,-500.0,0.00022191,2]
[342078975,1731412250826,-500.0,0.00022191,2]
[342078976,1731412250836,-500.0,0.00022191,2]
[342078977,1731412250845,-151.0,0.00022191,7]
[342078978,1731412250854,-151.0,0.00022191,7]
[342078979,1731412250864,-151.0,0.00022191,7]
[342078980,1731412250875,-500.0,0.00022191,2]
[342078981,1731412250884,-151.0,0.00022191,7]
[342078982,1731412250894,-500.0,0.00022191,2]
[342078983,1731412250903,-500.0,0.00022191,2]
[342078984,1731412250912,-604.69736425,0.00022191,2]
[342078985,1731412250921,-500.0,0.00022191,2]
[342078986,1731412250931,-500.0,0.00022191,2]
[342078987,1731412250939,-500.0,0.00022191,2]
[342078988,1731412250949,-500.0,0.00022191,2]
[342078989,1731412250958,-151.34285,0.00022191,7]
[342078990,1731412250968,-500.0,0.00022191,2]
[342078991,1731412250977,-151.0,0.00022191,7]
[342078992,1731412250986,-151.0,0.00022191,7]
[342078993,1731412250995,-500.0,0.00022191,2]
[342078994,1731412251004,-544.28589609,0.00022191,2]
[342078995,1731412251014,-500.0,0.00022191,2]
[342078996,1731412251023,-500.0,0.00022191,2]
[342078997,1731412251032,-74.01678737,0.00022191,2]
[342078998,1731412251057,-246.77389995,0.00022191,2]
[342078999,1731412251067,-500.0,0.00022191,2]
[342079000,1731412251076,-237.77193365,0.00022191,2]
[342079001,1731412251280,-350.74081972,0.00022191,2]
[342079002,1731412251290,-117.54183635,0.00022191,2]
[342079003,1731412251301,-382.45816365,0.00022191,2]
[342079004,1731412251310,-208.7518771,0.00022191,2]
[342079005,1731412270969,314.05730491,0.00029041,120]
[342079006,1731412280425,163.395681,0.00013973,2]
[342079007,1731412297671,1008.34,0.00030136,120]
[342079012,1731412562074,999.0,0.00030136,120]
[342079015,1731412655744,1169.27083333,0.00020843,2]
[342079018,1731412773808,491.81895645,0.0003,120]
[342079022,1731412967453,1169.27083333,0.00020843,2]
[342079025,1731413011031,248.661393,0.00020657,2]
[342079027,1731413033330,163.395681,0.00013973,2]
[342079029,1731413095311,671.7651842,0.00020723,2]
[342079030,1731413100702,537.8,0.000208,2]
[342079032,1731413279059,1169.27083333,0.00020843,2]
[342079035,1731413286914,484.02,0.000208,2]
[342079081,1731413434553,-1169.27083333,0.00020844,2]
[342079083,1731413434563,-591.25952484,0.000209,2]
[342079089,1731413434662,-408.74047516,0.000209,2]
[342079091,1731413434672,-300.0,0.00020911,2]
[342079092,1731413434682,-8820.84785175,0.00020912,2]
[342079104,1731413438198,-971.74954304,0.00020912,2]
[342079105,1731413438210,-477.07951696,0.00020912,2]
[342079106,1731413438221,-13652.69333855,0.00020912,2]
[342079107,1731413438231,-1000.0,0.000214,2]
[342079108,1731413438242,-3485.0,0.00021679,2]
[342079109,1731413438251,-168.22881521,0.00021817,2]
[342079110,1731413438261,-179.277721,0.000219,2]
[342079111,1731413438270,-1000.0,0.000219,2]
[342079112,1731413438279,-479.82388691,0.00021916,2]
[342079113,1731413438288,-211.51035003,0.00021916,2]
[342079114,1731413438298,-542.27070527,0.00021917,2]
[342079115,1731413438307,-500.0,0.00021917,2]
[342079116,1731413438320,-500.0,0.00021917,2]
[342079117,1731413438329,-500.0,0.00021917,2]
[342079118,1731413438338,-500.0,0.00021917,2]
[342079119,1731413438351,-500.0,0.00021917,2]
[342079120,1731413438360,-500.0,0.00021917,2]
[342079121,1731413438369,-500.0,0.00021917,2]
[342079122,1731413438378,-500.0,0.00021917,2]
[342079123,1731413438387,-500.0,0.00021917,2]
[342079124,1731413438396,-500.0,0.00021917,2]
[342079125,1731413438406,-500.0,0.00021917,2]
[342079126,1731413438416,-201.95310859,0.00021917,2]
[342079127,1731413438425,-515.11027934,0.00021917,2]
[342079128,1731413438435,-500.0,0.00021917,2]
[342079129,1731413438444,-500.0,0.00021917,2]
[342079130,1731413438453,-500.0,0.00021917,2]
[342079131,1731413438463,-500.0,0.00021917,2]
[342079132,1731413438472,-382.58856595,0.00021917,2]
[342079181,1731413442838,-117.41143405,0.00021917,2]
[342079182,1731413442847,-521.76,0.00021917,2]
[342079184,1731413442861,-500.0,0.00021917,2]
[342079186,1731413442871,-500.0,0.00021917,2]
[342079188,1731413442881,-500.0,0.00021917,2]
[342079190,1731413442890,-500.0,0.00021917,2]
[342079191,1731413442900,-500.0,0.00021917,2]
[342079192,1731413442909,-500.0,0.00021917,2]
[342079193,1731413442918,-500.0,0.00021917,2]
[342079194,1731413442927,-500.0,0.00021917,2]
[342079195,1731413442937,-159.27730559,0.00021917,2]
[342079196,1731413442946,-500.0,0.00021917,2]
[342079197,1731413442956,-500.0,0.00021917,2]
[342079198,1731413442965,-500.0,0.00021917,2]
[342079199,1731413442975,-642.83152483,0.00021917,2]
[342079200,1731413442985,-500.0,0.00021917,2]
[342079201,1731413442994,-689.57,0.00021917,2]
[342079202,1731413443003,-500.0,0.00021917,2]
[342079203,1731413443013,-500.0,0.00021917,2]
[342079204,1731413443022,-522.92349765,0.00021917,2]
[342079205,1731413443032,-503.98862093,0.00021917,2]
[342079206,1731413443041,-500.0,0.00021917,2]
[342079207,1731413443051,-500.12319734,0.00021917,2]
[342079208,1731413443147,-151.0,0.00021917,2]
[342079209,1731413443156,-500.0,0.00021917,2]
[342079210,1731413443166,-500.0,0.00021917,2]
[342079211,1731413443175,-511.52229824,0.00021917,2]
[342079212,1731413443184,-500.0,0.00021917,2]
[342079213,1731413443194,-151.0,0.00021917,2]
[342079214,1731413443203,-500.0,0.00021917,2]
[342079215,1731413443213,-500.0,0.00021917,2]
[342079216,1731413443222,-161.76408677,0.00021917,2]
[342079217,1731413443232,-500.0,0.00021917,2]
[342079218,1731413443241,-500.0,0.00021917,2]
[342079219,1731413443250,-500.0,0.00021917,2]
[342079220,1731413443260,-500.0,0.00021917,2]
[342079221,1731413443269,-500.0,0.00021917,2]
[342079222,1731413443279,-500.0,0.00021917,2]
[342079223,1731413443288,-178.69489092,0.00021917,2]
[342079224,1731413443297,-500.0,0.00021917,2]
[342079225,1731413443307,-500.0,0.00021917,2]
[342079226,1731413443317,-151.0,0.00021917,2]
[342079227,1731413443327,-411.4654293,0.00021917,2]
[342079228,1731413443359,-88.5345707,0.00021917,2]
[342079229,1731413443368,-227.886113,0.00021917,2]
[342079230,1731413443377,-126.28959801,0.00021917,2]
[342079249,1731413579070,158.3782267,0.00020733,2]
[342079250,1731413795148,248.6613948,0.00020674,2]
[342079254,1731413866993,163.395681,0.00013973,2]
[342079256,1731413900869,1169.27083333,0.00020843,2]
[342079259,1731414121267,8616.4758758,0.00020833,2]
[342079262,1731414213479,1169.27083333,0.00020843,2]
[342079265,1731414284667,500.0,0.000278,120]
[342079268,1731414334596,471.46862905,0.000278,120]
[342079291,1731414524637,1169.27083333,0.00020843,2]
[342079299,1731414553320,163.395681,0.00013973,2]
[342079342,1731414635221,-735.6354372,0.00020843,2]
[342079356,1731414638033,-433.63539613,0.00020843,2]
[342079357,1731414638043,-180.038,0.00020844,2]
[342079358,1731414638052,-184.683,0.00020844,2]
[342079359,1731414638062,-435.61,0.000209,2]
[342079360,1731414638072,-300.0,0.00021816,2]
[342079361,1731414638081,-776.01540064,0.00021817,2]
[342079362,1731414638090,-6924.85867224,0.00021817,2]
[342079363,1731414638102,-1416.98114934,0.00021817,2]
[342079377,1731414639880,-2615.19,0.00021817,2]
[342079401,1731414643279,-108020.82336611,0.00021817,2]
[342079402,1731414643296,-14111.55400693,0.00021817,2]
[342079403,1731414643305,-235.52034127,0.00021817,2]
[342079404,1731414643315,-150.0,0.000219,2]
[342079405,1731414643324,-3715.25238889,0.00021915,2]
[342079406,1731414643333,-360.64887633,0.00021916,2]
[342079407,1731414643343,-236.24090813,0.00021916,2]
[342079408,1731414643352,-151.0,0.00021917,2]
[342079409,1731414643362,-201.986833,0.00021917,2]
[342079410,1731414643372,-151.0,0.00021917,2]
[342079411,1731414643381,-151.0,0.00021917,2]
[342079412,1731414643391,-151.0,0.00021917,2]
[342079413,1731414643400,-151.0,0.00021917,2]
[342079414,1731414643409,-61.28957051,0.00021917,2]
[342079456,1731414645982,-89.71042949,0.00021917,2]
[342079457,1731414645992,-151.0,0.00021917,2]
[342079459,1731414646003,-151.0,0.00021917,2]
[342079460,1731414646014,-500.0,0.00021917,2]
[342079461,1731414646026,-500.0,0.00021917,2]
[342079462,1731414646035,-151.0,0.00021917,2]
[342079463,1731414646046,-151.0,0.00021917,2]
[342079464,1731414646055,-179.482102,0.00021917,2]
[342079465,1731414646065,-500.0,0.00021917,2]
[342079466,1731414646075,-501.67279884,0.00021917,2]
[342079467,1731414646084,-500.0,0.00021917,2]
[342079468,1731414646094,-500.0,0.00021917,2]
[342079469,1731414646103,-500.0,0.00021917,2]
[342079470,1731414646113,-500.0,0.00021917,2]
[342079471,1731414646122,-507.83224838,0.00021917,2]
[342079472,1731414646132,-509.07603731,0.00021917,2]
[342079473,1731414646141,-500.0,0.00021917,2]
[342079474,1731414646151,-500.0,0.00021917,2]
[342079475,1731414646160,-500.0,0.00021917,2]
[342079476,1731414646169,-528.33711216,0.00021917,2]
[342079477,1731414646180,-500.0,0.00021917,2]
[342079478,1731414646190,-500.0,0.00021917,2]
[342079479,1731414646199,-500.0,0.00021917,2]
[342079480,1731414646209,-500.0,0.00021917,2]
[342079481,1731414646218,-500.0,0.00021917,2]
[342079482,1731414646230,-500.0,0.00021917,2]
[342079483,1731414646239,-500.0,0.00021917,2]
[342079484,1731414646249,-500.0,0.00021917,2]
[342079485,1731414646261,-168.75788187,0.00021917,2]
[342079486,1731414646271,-500.0,0.00021917,2]
[342079487,1731414646280,-376.15411555,0.00021917,2]
[342079488,1731414646290,-500.0,0.00021917,2]
[342079489,1731414646299,-500.0,0.00021917,2]
[342079490,1731414646309,-500.0,0.00021917,2]
[342079491,1731414646320,-500.0,0.00021917,2]
[342079492,1731414646331,-500.0,0.00021917,2]
[342079493,1731414646340,-500.0,0.00021917,2]
[342079494,1731414646350,-494.79543909,0.00021917,2]
[342079495,1731414646360,-500.0,0.00021917,2]
[342079496,1731414646369,-500.0,0.00021917,2]
[342079497,1731414646379,-500.0,0.00021917,2]
[342079498,1731414646390,-500.0,0.00021917,2]
[342079499,1731414646400,-500.0,0.00021917,2]
[342079500,1731414646411,-219.82400758,0.00021917,2]
[342079501,1731414646422,-151.0,0.00021917,2]
[342079502,1731414646432,-151.0,0.00021917,2]
[342079503,1731414646442,-151.0,0.00021917,2]
[342079504,1731414646453,-157.050938,0.00021917,2]
[342079505,1731414646462,-151.0,0.00021917,2]
[342079506,1731414646473,-151.0,0.00021917,2]
[342079507,1731414646484,-151.0,0.00021917,2]
[342079508,1731414646495,-458.4298966,0.00021917,2]
[342079509,1731414646506,-500.0,0.00021917,2]
[342079510,1731414646516,-151.0,0.00021917,2]
[342079511,1731414646526,-517.16889602,0.00021917,2]
[342079512,1731414646536,-151.0,0.00021917,2]
[342079513,1731414646546,-151.0,0.00021917,2]
[342079514,1731414646556,-151.0,0.00021917,2]
[342079515,1731414646569,-500.0,0.00021917,2]
[342079516,1731414646579,-500.0,0.00021917,2]
[342079517,1731414646589,-500.0,0.00021917,2]
[342079518,1731414646600,-502.72105777,0.00021917,2]
[342079519,1731414646610,-524.40677164,0.00021917,2]
[342079520,1731414646620,-537.86925775,0.00021917,2]
[342079521,1731414646630,-500.0,0.00021917,2]
[342079522,1731414646640,-500.0,0.00021917,2]
[342079523,1731414646651,-500.0,0.00021917,2]
[342079524,1731414646661,-500.0,0.00021917,2]
[342079525,1731414646671,-500.0,0.00021917,2]
[342079526,1731414646681,-500.0,0.00021917,2]
[342079527,1731414646690,-500.0,0.00021917,2]
[342079528,1731414646701,-450.0,0.00021917,2]
[342079529,1731414646711,-500.0,0.00021917,2]
[342079530,1731414646720,-500.0,0.00021917,2]
[342079531,1731414646730,-500.0,0.00021917,2]
[342079532,1731414646739,-500.0,0.00021917,2]
[342079533,1731414646749,-509.39301151,0.00021917,2]
[342079534,1731414646761,-500.0,0.00021917,2]
[342079535,1731414646771,-500.0,0.00021917,2]
[342079536,1731414646781,-572.48985408,0.00021917,2]
[342079537,1731414646791,-500.0,0.00021917,2]
[342079538,1731414646802,-324.647214,0.00021917,2]
[342079539,1731414646811,-324.647214,0.00021917,2]
[342079540,1731414646818,-324.647214,0.00021917,2]
[342079541,1731414646826,-324.647214,0.00021917,2]
[342079542,1731414646833,-602.95126911,0.00021917,2]
[342079543,1731414646842,-500.0,0.00021917,2]
[342079544,1731414646852,-324.647214,0.00021917,2]
[342079545,1731414646862,-324.647214,0.00021917,2]
[342079546,1731414646872,-324.647214,0.00021917,2]
[342079547,1731414646881,-324.647214,0.00021917,2]
[342079548,1731414646891,-200.0,0.00021917,2]
[342079549,1731414646901,-500.0,0.00021917,2]
[342079550,1731414646911,-500.0,0.00021917,2]
[342079551,1731414646921,-505.66860195,0.00021917,2]
[342079552,1731414646931,-500.0,0.00021917,2]
[342079553,1731414646941,-500.0,0.00021917,2]
[342079554,1731414646954,-335.60267093,0.00021917,2]
[342079555,1731414646964,-521.89410803,0.00021917,2]
[342079556,1731414646974,-513.16616186,0.00021917,2]
[342079557,1731414646984,-500.0,0.00021917,2]
[342079558,1731414646995,-464.76162965,0.00021917,2]
[342079559,1731414647007,-500.0,0.00021917,2]
[342079560,1731414647019,-438.73684864,0.00021917,2]
[342079561,1731414647030,-524.46231481,0.00021917,2]
[342079562,1731414647040,-538.93237744,0.00021917,2]
[342079563,1731414647050,-579.58734664,0.00021917,2]
[342079564,1731414647059,-599.92,0.00021917,2]
[342079565,1731414647069,-511.27885708,0.00021917,2]
[342079566,1731414647078,-372.67554763,0.00021917,2]
[342079567,1731414647087,-500.0,0.00021917,2]
[342079568,1731414647097,-500.0,0.00021917,2]
[342079569,1731414647106,-157.409458,0.00021917,2]
[342079570,1731414647116,-500.0,0.00021917,2]
[342079571,1731414647125,-151.0,0.00021917,2]
[342079572,1731414647135,-151.0,0.00021917,2]
[342079573,1731414647144,-151.0,0.00021917,2]
[342079574,1731414647154,-151.0,0.00021917,2]
[342079575,1731414647164,-151.0,0.00021917,2]
[342079576,1731414647174,-151.0,0.00021917,2]
[342079577,1731414647184,-151.0,0.00021917,2]
[342079578,1731414647193,-151.0,0.00021917,2]
[342079579,1731414647203,-500.0,0.00021917,2]
[342079580,1731414647212,-500.0,0.00021917,2]
[342079581,1731414647221,-500.0,0.00021917,2]
[342079582,1731414647230,-500.0,0.00021917,2]
[342079583,1731414647240,-151.0,0.00021917,2]
[342079584,1731414647250,-156.997698,0.00021917,2]
[342079585,1731414647262,-500.0,0.00021917,2]
[342079586,1731414647272,-511.12058777,0.00021917,2]
[342079587,1731414647281,-500.0,0.00021917,2]
[342079588,1731414647384,-500.0,0.00021917,2]
[342079589,1731414647394,-500.0,0.00021917,2]
[342079590,1731414647404,-151.0,0.00021917,2]
[342079591,1731414647413,-500.0,0.00021917,2]
[342079592,1731414647423,-151.0,0.00021917,2]
[342079593,1731414647431,-151.0,0.00021917,2]
[342079594,1731414647440,-151.0,0.00021917,2]
[342079595,1731414647449,-500.0,0.00021917,2]
[342079596,1731414647458,-161.860257,0.00021917,2]
[342079597,1731414647468,-500.0,0.00021917,2]
[342079598,1731414647477,-500.0,0.00021917,2]
[342079599,1731414647487,-500.0,0.00021917,2]
[342079600,1731414647496,-500.0,0.00021917,2]
[342079601,1731414647508,-500.0,0.00021917,2]
[342079602,1731414647522,-460.825,0.00021917,2]
[342079603,1731414647531,-507.92733499,0.00021917,2]
[342079604,1731414647541,-500.0,0.00021917,2]
[342079605,1731414647551,-460.825,0.00021917,2]
[342079606,1731414647560,-460.825,0.00021917,2]
[342079607,1731414647570,-460.825,0.00021917,2]
[342079608,1731414647579,-505.64140249,0.00021917,2]
[342079609,1731414647589,-534.51506085,0.00021917,2]
[342079610,1731414647598,-500.0,0.00021917,2]
[342079611,1731414647607,-460.825,0.00021917,2]
[342079612,1731414647617,-500.0,0.00021917,2]
[342079613,1731414647627,-460.825,0.00021917,2]
[342079614,1731414647637,-460.825,0.00021917,2]
[342079615,1731414647646,-460.825,0.00021917,2]
[342079616,1731414647656,-500.0,0.00021917,2]
[342079617,1731414647666,-523.30400976,0.00021917,2]
[342079618,1731414647675,-151.0,0.00021917,2]
[342079619,1731414647684,-151.0,0.00021917,2]
[342079620,1731414647694,-151.0,0.00021917,2]
[342079621,1731414647703,-176.02472,0.00021917,2]
[342079622,1731414647712,-500.0,0.00021917,2]
[342079623,1731414647721,-500.0,0.00021917,2]
[342079624,1731414647731,-500.0,0.00021917,2]
[342079625,1731414647741,-500.0,0.00021917,2]
[342079626,1731414647750,-500.0,0.00021917,2]
[342079627,1731414647767,-500.0,0.00021917,2]
[342079628,1731414647776,-508.06153653,0.00021917,2]
[342079629,1731414647785,-500.0,0.00021917,2]
[342079630,1731414647795,-500.0,0.00021917,2]
[342079631,1731414647804,-449.34581962,0.00021917,2]
[342079632,1731414647813,-500.0,0.00021917,2]
[342079633,1731414647822,-525.84525482,0.00021917,2]
[342079634,1731414647831,-690.82,0.00021917,2]
[342079635,1731414647840,-512.37100761,0.00021917,2]
[342079636,1731414647849,-450.44112456,0.00021917,2]
[342079637,1731414647859,-500.0,0.00021917,2]
[342079638,1731414647868,-500.0,0.00021917,2]
[342079639,1731414647877,-2056.59,0.00021917,2]
[342079640,1731414647887,-500.0,0.00021917,2]
[342079641,1731414647896,-500.0,0.00021917,2]
[342079642,1731414647905,-443.76744663,0.00021917,2]
[342079643,1731414647915,-500.0,0.00021917,2]
[342079644,1731414647923,-500.0,0.00021917,2]
[342079645,1731414647932,-500.0,0.00021917,2]
[342079646,1731414647951,-503.65622894,0.00021917,2]
[342079647,1731414647967,-500.0,0.00021917,2]
[342079648,1731414647977,-500.0,0.00021917,2]
[342079649,1731414647986,-500.0,0.00021917,2]
[342079650,1731414647996,-500.0,0.00021917,2]
[342079651,1731414648009,-500.0,0.00021917,2]
[342079652,1731414648020,-500.0,0.00021917,2]
[342079653,1731414648029,-151.0,0.00021917,2]
[342079654,1731414648039,-151.0,0.00021917,2]
[342079655,1731414648048,-151.0,0.00021917,2]
[342079656,1731414648058,-151.0,0.00021917,2]
[342079657,1731414648067,-151.0,0.00021917,2]
[342079658,1731414648076,-515.47156793,0.00021917,2]
[342079659,1731414648086,-151.0,0.00021917,2]
[342079660,1731414648095,-151.0,0.00021917,2]
[342079661,1731414648104,-151.0,0.00021917,2]
[342079662,1731414648115,-151.0,0.00021917,2]
[342079663,1731414648125,-500.0,0.00021917,2]
[342079664,1731414648134,-151.0,0.00021917,2]
[342079665,1731414648143,-500.0,0.00021917,2]